fUSD/lending_fUSD_20250201
["ID","MTS","AMOUNT","RATE_DAILY","PERIOD"]
[351156489,1738368631735,-5558.0,0.000127,5]
[351156490,1738368631747,-204.42071577,0.000129,2]
[351156491,1738368631756,-550.0,0.00013,2]
[351156492,1738368631765,-175.8,0.00013699,2]
[351156493,1738368631775,-150.0,0.0001408,2]
[351156494,1738368631784,-150.0,0.000143,2]
[351156495,1738368631793,-150.0,0.000143,2]
[351156496,1738368631803,-600.0,0.00015,2]
[351156497,1738368631812,-500.0,0.00015041,2]
[351156498,1738368631821,-863.52,0.00015337,2]
[351156499,1738368631830,-572.003083,0.00016296,2]
[351156500,1738368631839,-300.0,0.00016378,2]
[351156501,1738368631850,-200.0,0.0001638,2]
[351156502,1738368631859,-680.25620123,0.00016541,2]
[351156503,1738368631879,-92.50379877,0.00016541,2]
[351156504,1738368631889,-774.29,0.00016741,2]
[351156505,1738368631902,-439.19,0.00016741,2]
[351156506,1738368631912,-862.14,0.0001678,2]
[351156507,1738368631928,-1400.2689,0.00016821,2]
[351156508,1738368631938,-368.91,0.00016837,2]
[351156509,1738368631948,-380.8,0.00016837,2]
[351156510,1738368631958,-370.37,0.00016837,2]
[351156511,1738368631969,-369.66,0.00016837,2]
[351156512,1738368631979,-377.88,0.00016837,2]
[351156513,1738368631989,-381.95,0.00016837,2]
[351156514,1738368631999,-1500.0,0.00016863,2]
[351156515,1738368632008,-376.07,0.00016922,2]
[351156516,1738368632017,-150.0,0.00016922,2]
[351156517,1738368632026,-367.94,0.00016922,2]
[351156518,1738368632036,-375.33,0.00016922,2]
[351156519,1738368632046,-375.24,0.00016922,2]
[351156520,1738368632054,-500.0,0.00016922,2]
[351156521,1738368632063,-900.0,0.00016922,2]
[351156522,1738368632074,-157.03,0.00016923,30]
[351156523,1738368632082,-774.29,0.00016941,2]
[351156524,1738368632091,-439.19,0.00016941,2]
[351156525,1738368632100,-204.42071577,0.00016949,2]
[351156526,1738368632109,-1417.0,0.00017,2]
[351156527,1738368632118,-405.0,0.00017045,2]
[351156528,1738368632131,-50500.0,0.00017046,2]
[351156529,1738368632140,-150.0,0.00017049,2]
[351156530,1738368632149,-338.4,0.00017066,2]
[351156531,1738368632158,-1000.0,0.00017069,2]
[351156532,1738368632167,-14616.27,0.00017137,2]
[351156533,1738368632176,-23900.0,0.00017137,2]
[351156534,1738368632185,-150.0,0.00017155,2]
[351156535,1738368632194,-225.66,0.0001725,2]
[351156536,1738368632204,-250.0,0.0001725,2]
[351156537,1738368632213,-414.82,0.00017262,2]
[351156538,1738368632222,-1000.0,0.000174,2]
[351156539,1738368632231,-1000.0,0.000174,2]
[351156540,1738368632240,-1731.0,0.000174,2]
[351156541,1738368632249,-418.81761,0.0001753,2]
[351156542,1738368632258,-774.29,0.00017541,2]
[351156543,1738368632267,-439.19,0.00017541,2]
[351156544,1738368632276,-418.81761,0.00017554,2]
[351156545,1738368632285,-418.81761,0.00017556,2]
[351156546,1738368632294,-376.24,0.0001758,2]
[351156547,1738368632303,-3188.11354418,0.0001758,2]
[351156548,1738368632312,-418.81761,0.00017591,2]
[351156549,1738368632321,-863.52,0.00017601,2]
[351156550,1738368632331,-532.2112555,0.0001764,2]
[351156551,1738368632340,-356.04873284,0.00017741,2]
[351156552,1738368632349,-177.48,0.00017768,2]
[351156553,1738368632359,-339.95785756,0.000178,2]
[351156554,1738368632367,-1525.476,0.00017813,2]
[351156555,1738368632380,-169.811,0.00017813,2]
[351156556,1738368632390,-500.0,0.00017856,2]
[351156557,1738368632399,-2020.0,0.00017866,2]
[351156558,1738368632409,-1323.0,0.00017866,2]
[351156559,1738368632418,-150.0,0.00017866,2]
[351156560,1738368632428,-298.34,0.00017876,2]
[351156561,1738368632437,-313.42731435,0.000179,2]
[351156562,1738368632446,-36650.8351997,0.000179,2]
[351156563,1738368632456,-2911.7662,0.000179,2]
[351156564,1738368632465,-3170.6005,0.000179,2]
[351156565,1738368632475,-200.7224,0.000179,2]
[351156566,1738368632484,-500.0,0.000179,2]
[351156567,1738368632494,-368.4157,0.000179,2]
[351156568,1738368632503,-1573.76,0.000179,2]
[351156569,1738368632512,-1000.0,0.000179,2]
[351156570,1738368632522,-2500.0,0.000179,2]
[351156571,1738368632531,-420.0,0.000179,2]
[351156572,1738368632687,-339.95785755,0.00017909,2]
[351156573,1738368632697,-338.4,0.00017919,2]
[351156574,1738368632706,-1619.8262285,0.00017994,2]
[351156575,1738368632715,-2365.059627,0.00017994,2]
[351156576,1738368632725,-6664.6095859,0.00017994,2]
[351156577,1738368632735,-2500.0,0.00017999,4]
[351156578,1738368632744,-7111.93828186,0.00018,2]
[351156579,1738368632754,-4454.33742581,0.00018,2]
[351156580,1738368632763,-340.84606454,0.00018,2]
[351156581,1738368632773,-189.42348566,0.00018,2]
[351156582,1738368632782,-3000.0,0.00018,2]
[351156583,1738368632792,-1000.0,0.00018,2]
[351156584,1738368632801,-374.55,0.00018,2]
[351156585,1738368632810,-339.95785755,0.00018018,2]
[351156586,1738368632820,-500.0,0.00018018,2]
[351156587,1738368632829,-900.0,0.00018018,2]
[351156588,1738368632839,-313.4273143,0.00018038,2]
[351156589,1738368632852,-471.05,0.00018082,2]
[351156590,1738368632861,-339.95785755,0.00018127,2]
[351156591,1738368632870,-313.4273143,0.00018176,2]
[351156592,1738368632882,-222.5050411,0.00018192,2]
[351156593,1738368632891,-339.95785755,0.00018236,2]
[351156594,1738368632901,-313.4273143,0.00018314,2]
[351156595,1738368632910,-339.95785755,0.00018344,2]
[351156596,1738368632920,-150.0,0.00018407,2]
[351156597,1738368632930,-153.593778,0.00018416,2]
[351156598,1738368632940,-313.4273143,0.00018452,2]
[351156599,1738368632949,-339.95785755,0.00018453,2]
[351156600,1738368632959,-339.95785755,0.00018562,2]
[351156601,1738368632968,-313.4273143,0.0001859,2]
[351156602,1738368632978,-2149.68,0.000186,2]
[351156603,1738368632987,-5008.0489,0.000186,2]
[351156604,1738368632996,-895.1297,0.000186,2]
[351156605,1738368633006,-1704.3955,0.000186,2]
[351156606,1738368633016,-5683.3195,0.000186,2]
[351156607,1738368633026,-9311.63591794,0.000186,2]
[351156608,1738368633056,-1543.24488206,0.000186,2]
[351156609,1738368633066,-323.856,0.000186,2]
[351156610,1738368633076,-169.39290053,0.000186,2]
[351156611,1738368633085,-393.28631465,0.00018601,2]
[351156612,1738368633097,-150.0,0.00018604,2]
[351156613,1738368633107,-150.0,0.00018605,2]
[351156614,1738368633118,-150.0,0.00018608,2]
[351156615,1738368633131,-150.0,0.00018609,2]
[351156616,1738368633144,-5000.0,0.00018609,2]
[351156617,1738368633154,-1000.0,0.0001861,2]
[351156618,1738368633168,-150.0,0.00018611,2]
[351156619,1738368633181,-150.0,0.00018612,2]
[351156620,1738368633191,-150.0,0.00018612,2]
[351156621,1738368633201,-150.0,0.00018614,2]
[351156622,1738368633211,-150.0,0.00018614,2]
[351156623,1738368633220,-150.0,0.00018615,2]
[351156624,1738368633230,-1000.0,0.00018615,2]
[351156625,1738368633239,-150.0,0.00018619,2]
[351156626,1738368633248,-150.0,0.0001862,2]
[351156627,1738368633258,-393.28631456,0.00018623,2]
[351156628,1738368633267,-150.0,0.00018628,2]
[351156629,1738368633276,-150.0,0.00018628,2]
[351156630,1738368633286,-150.0,0.0001863,2]
[351156631,1738368633296,-150.0,0.00018631,2]
[351156632,1738368633305,-150.0,0.00018633,2]
[351156633,1738368633315,-150.0,0.00018633,2]
[351156634,1738368633325,-150.0,0.00018634,2]
[351156635,1738368633335,-150.0,0.00018636,2]
[351156636,1738368633344,-1000.0,0.00018637,2]
[351156637,1738368633354,-150.0,0.0001864,2]
[351156638,1738368633363,-1000.0,0.00018641,2]
[351156639,1738368633376,-150.0,0.00018642,2]
[351156640,1738368633386,-150.0,0.00018645,2]
[351156641,1738368633396,-393.28631456,0.00018645,2]
[351156642,1738368633405,-150.0,0.00018647,2]
[351156643,1738368633415,-150.0,0.00018648,2]
[351156644,1738368633425,-150.0,0.00018648,2]
[351156645,1738368633434,-150.0,0.00018651,2]
[351156646,1738368633444,-150.0,0.00018652,2]
[351156647,1738368633453,-150.0,0.00018652,2]
[351156648,1738368633463,-1000.0,0.00018659,2]
[351156649,1738368633473,-150.0,0.00018665,2]
[351156650,1738368633483,-393.28631456,0.00018667,2]
[351156651,1738368633493,-150.0,0.00018668,2]
[351156652,1738368633503,-635.3695307,0.00018669,2]
[351156653,1738368633513,-150.0,0.00018669,2]
[351156654,1738368633523,-150.0,0.00018671,2]
[351156655,1738368633533,-150.0,0.00018671,2]
[351156656,1738368633543,-339.95785755,0.00018671,2]
[351156657,1738368633552,-150.0,0.00018672,2]
[351156658,1738368633562,-150.0,0.00018673,2]
[351156659,1738368633572,-150.0,0.00018675,2]
[351156660,1738368633582,-150.0,0.00018675,2]
[351156661,1738368633592,-150.0,0.00018678,2]
[351156662,1738368633603,-1000.0,0.00018679,2]
[351156663,1738368633613,-1000.0,0.00018679,2]
[351156664,1738368633627,-150.0,0.0001868,2]
[351156665,1738368633636,-150.0,0.00018681,2]
[351156666,1738368633646,-2584.85199289,0.00018683,2]
[351156667,1738368633656,-150.0,0.00018683,2]
[351156668,1738368633665,-150.0,0.00018685,2]
[351156669,1738368633675,-1000.0,0.00018685,2]
[351156670,1738368633685,-150.0,0.00018687,2]
[351156671,1738368633694,-393.28631456,0.00018689,2]
[351156672,1738368633703,-150.0,0.0001869,2]
[351156673,1738368633712,-150.0,0.00018691,2]
[351156674,1738368633721,-150.0,0.00018692,2]
[351156675,1738368633731,-150.0,0.00018694,2]
[351156676,1738368633740,-150.0,0.00018695,2]
[351156677,1738368633749,-150.0,0.00018695,2]
[351156678,1738368633759,-1000.0,0.00018698,2]
[351156679,1738368633768,-2674.54595905,0.000187,2]
[351156680,1738368633781,-2310.14988369,0.000187,2]
[351156681,1738368635862,-275.41528,0.00017037,2]
[351156700,1738368637603,-285.28206201,0.00017037,2]
[351156701,1738368637616,-329.96,0.00017037,2]
[351156702,1738368637635,-500.795,0.00017037,2]
[351156703,1738368637646,-1246.95015799,0.00017037,2]
[351156704,1738368637657,-1000.0,0.000179,2]
[351156705,1738368637667,-150.0,0.00018604,2]
[351156706,1738368637678,-150.0,0.00018607,2]
[351156707,1738368637688,-150.0,0.00018612,2]
[351156708,1738368637698,-150.0,0.00018621,2]
[351156709,1738368637708,-150.0,0.00018646,2]
[351156710,1738368637718,-150.0,0.00018647,2]
[351156711,1738368637728,-150.0,0.00018649,2]
[351156712,1738368637738,-150.0,0.00018654,2]
[351156713,1738368637748,-150.0,0.00018658,2]
[351156714,1738368637758,-150.0,0.00018661,2]
[351156715,1738368637768,-150.0,0.00018663,2]
[351156716,1738368637778,-150.0,0.00018672,2]
[351156717,1738368637788,-150.0,0.00018672,2]
[351156718,1738368637798,-150.0,0.00018675,2]
[351156719,1738368637808,-150.0,0.00018675,2]
[351156720,1738368637818,-150.0,0.00018679,2]
[351156721,1738368637827,-150.0,0.0001868,2]
[351156722,1738368637837,-150.0,0.00018686,2]
[351156723,1738368637849,-150.0,0.00018692,2]
[351156724,1738368637860,-150.0,0.00018696,2]
[351156725,1738368637870,-150.0,0.00018696,2]
[351156726,1738368637886,-10233.60005563,0.000187,2]
[351156727,1738368637900,-582.27999921,0.000187,2]
[351156728,1738368637916,-1463.58,0.000187,2]
[351156729,1738368637944,-150.0,0.00018679,2]
[351156730,1738368637954,-279.45092579,0.000187,2]
[351156731,1738368637966,-610.22697178,0.000187,2]
[351156732,1738368637979,-7270.766872,0.000187,2]
[351156735,1738368638029,-150.0,0.00018625,2]
[351156736,1738368638039,-150.0,0.00018638,2]
[351156737,1738368638049,-1753.4988,0.000187,2]
[351156764,1738368639773,-150.0,0.00018627,2]
[351156765,1738368639782,-150.0,0.00018631,2]
[351156766,1738368639793,-150.0,0.00018648,2]
[351156767,1738368639802,-150.0,0.00018659,2]
[351156768,1738368639811,-137.50533136,0.00018663,2]
[351156769,1738368640090,-150.0,0.0001862,2]
[351156770,1738368640100,-150.0,0.0001863,2]
[351156771,1738368640109,-12.49466864,0.00018663,2]
[351156772,1738368640118,-150.0,0.00018673,2]
[351156773,1738368640129,-150.0,0.00018678,2]
[351156774,1738368640139,-150.0,0.00018697,2]
[351156775,1738368640148,-966.27795721,0.000187,2]
[351156776,1738368640160,-1925.36,0.000187,2]
[351156777,1738368640179,-1693.83655973,0.000187,2]
[351156778,1738368640206,-11428.39498367,0.000187,2]
[351156779,1738368640217,-4461.53053296,0.000187,2]
[351156780,1738368640230,-6526.84105662,0.000187,2]
[351156781,1738368640241,-55558.0,0.000187,2]
[351156782,1738368640264,-572.78029394,0.000187,2]
[351156783,1738368640277,-2004.69357214,0.000187,2]
[351156784,1738368640288,-342.38583115,0.000187,2]
[351156785,1738368640300,-547.19601821,0.000187,2]
[351156919,1738368642774,-150.0,0.00018641,2]
[351156920,1738368642784,-104.39513532,0.000187,2]
[351156921,1738368642828,-664.68609994,0.000187,2]
[351156922,1738368642841,-381.15,0.000187,2]
[351156923,1738368642883,-8729.57037033,0.000187,2]
[351156924,1738368642894,-1000.0,0.00018701,2]
[351156925,1738368642903,-150.0,0.00018703,2]
[351156926,1738368642912,-150.0,0.00018703,2]
[351156927,1738368642922,-150.0,0.00018705,2]
[351156928,1738368642934,-150.0,0.00018707,2]
[351156929,1738368642943,-150.0,0.00018708,2]
[351156930,1738368642953,-150.0,0.00018709,2]
[351156931,1738368642962,-150.0,0.00018709,2]
[351156932,1738368642971,-150.0,0.00018709,2]
[351156933,1738368642981,-393.28631456,0.00018712,2]
[351156934,1738368642990,-150.0,0.00018714,2]
[351156935,1738368642999,-150.0,0.00018715,2]
[351156936,1738368643009,-1000.0,0.00018715,2]
[351156937,1738368643019,-150.0,0.00018724,2]
[351156938,1738368643029,-150.0,0.00018724,2]
[351156939,1738368643039,-150.0,0.00018724,2]
[351156940,1738368643048,-150.0,0.00018724,2]
[351156941,1738368643057,-150.0,0.00018724,2]
[351156942,1738368643067,-313.4273143,0.00018728,2]
[351156943,1738368643077,-150.0,0.00018729,2]
[351156944,1738368643087,-150.0,0.00018729,2]
[351156945,1738368643097,-150.0,0.00018731,2]
[351156946,1738368643107,-150.0,0.00018731,2]
[351156947,1738368643116,-150.0,0.00018732,2]
[351156948,1738368643125,-150.0,0.00018732,2]
[351156949,1738368643138,-393.28631456,0.00018734,2]
[351156950,1738368643148,-1000.0,0.00018734,2]
[351156951,1738368643156,-150.0,0.00018737,2]
[351156952,1738368643166,-150.0,0.00018739,2]
[351156953,1738368643175,-150.0,0.00018743,2]
[351156954,1738368643184,-150.0,0.00018744,2]
[351156955,1738368643193,-150.0,0.00018747,2]
[351156956,1738368643202,-150.0,0.00018748,2]
[351156957,1738368643212,-150.0,0.00018748,2]
[351156958,1738368643221,-150.0,0.0001875,2]
[351156959,1738368643230,-150.0,0.0001875,2]
[351156960,1738368643239,-150.0,0.0001875,2]
[351156961,1738368643249,-471.05,0.00018751,2]
[351156962,1738368643258,-150.0,0.00018752,2]
[351156963,1738368643267,-150.0,0.00018752,2]
[351156964,1738368643276,-150.0,0.00018753,2]
[351156965,1738368643285,-150.0,0.00018753,2]
[351156966,1738368643294,-150.0,0.00018753,2]
[351156967,1738368643303,-164.6336982,0.00018754,2]
[351156968,1738368643313,-150.0,0.00018755,2]
[351156969,1738368643321,-393.28631456,0.00018756,2]
[351156970,1738368643330,-150.0,0.00018757,2]
[351156971,1738368643340,-150.0,0.00018758,2]
[351156972,1738368643348,-150.0,0.00018759,2]
[351156973,1738368643357,-150.0,0.0001876,2]
[351156974,1738368643366,-150.0,0.0001876,2]
[351156975,1738368643376,-150.0,0.00018761,2]
[351156976,1738368643388,-1000.0,0.00018762,2]
[351156977,1738368643398,-150.0,0.00018764,2]
[351156978,1738368643407,-1000.0,0.00018764,2]
[351156979,1738368643417,-150.0,0.00018768,2]
[351156980,1738368643426,-1000.0,0.0001877,2]
[351156981,1738368643435,-150.0,0.00018772,2]
[351156982,1738368643444,-150.0,0.00018772,2]
[351156983,1738368643453,-338.4,0.00018772,2]
[351156984,1738368643463,-150.0,0.00018773,2]
[351156985,1738368643472,-150.0,0.00018773,2]
[351156986,1738368643481,-150.0,0.00018774,2]
[351156987,1738368643491,-1000.0,0.00018775,2]
[351156988,1738368643501,-1000.0,0.00018776,2]
[351156989,1738368643511,-166.76536679,0.00018777,2]
[351156990,1738368643520,-393.28631456,0.00018778,2]
[351156991,1738368643529,-150.0,0.00018778,2]
[351156992,1738368643539,-150.0,0.00018779,2]
[351156993,1738368643548,-1818.0,0.00018779,2]
[351156994,1738368643558,-221.0,0.0001878,2]
[351156995,1738368643567,-607.24630146,0.0001878,2]
[351156997,1738368643576,-537.36632134,0.0001878,2]
[351156999,1738368643586,-249.68433118,0.0001878,2]
[351157001,1738368643595,-1730.87078917,0.0001878,2]
[351157004,1738368643607,-2852.22542305,0.0001878,2]
[351157005,1738368643616,-182.54789094,0.0001878,3]
[351157007,1738368643626,-339.95785755,0.0001878,2]
[351157010,1738368643638,-150.0,0.00018781,2]
[351157012,1738368643647,-1000.0,0.00018788,2]
[351157014,1738368643656,-150.0,0.00018789,2]
[351157016,1738368643667,-150.0,0.00018789,2]
[351157017,1738368643682,-1000.0,0.00018792,2]
[351157020,1738368643691,-150.0,0.00018792,2]
[351157021,1738368643701,-150.0,0.00018794,2]
[351157023,1738368643709,-150.0,0.00018795,2]
[351157025,1738368643718,-150.0,0.00018795,2]
[351157027,1738368643727,-150.0,0.00018796,2]
[351157029,1738368643736,-150.0,0.00018797,2]
[351157031,1738368643745,-5800.0,0.000188,2]
[351157033,1738368643754,-169.39290052,0.000188,2]
[351157035,1738368643763,-393.28631456,0.000188,2]
[351157037,1738368643773,-150.0,0.00018801,2]
[351157039,1738368643782,-150.0,0.00018804,2]
[351157041,1738368643791,-150.0,0.00018806,2]
[351157042,1738368643800,-150.0,0.00018806,2]
[351157044,1738368643809,-150.0,0.00018807,2]
[351157046,1738368643821,-150.0,0.00018807,2]
[351157048,1738368643830,-150.0,0.00018807,2]
[351157049,1738368643838,-150.0,0.00018808,2]
[351157051,1738368643851,-1000.0,0.00018809,2]
[351157053,1738368643861,-1000.0,0.00018809,2]
[351157055,1738368643870,-150.85645472,0.0001881,2]
[351157057,1738368643882,-150.0,0.00018811,2]
[351157059,1738368643893,-150.0,0.00018815,2]
[351157060,1738368643902,-150.0,0.00018816,2]
[351157062,1738368643911,-150.0,0.00018816,2]
[351157064,1738368643921,-150.0,0.00018816,2]
[351157065,1738368643931,-116.25359275,0.00018817,2]
[351157092,1738368645709,-150.0,0.00018603,2]
[351157093,1738368645718,-122.6430163,0.00018617,2]
[351157096,1738368645735,-27.3569837,0.00018617,2]
[351157098,1738368645744,-150.0,0.00018618,2]
[351157100,1738368645752,-150.0,0.00018622,2]
[351157102,1738368645761,-150.0,0.00018627,2]
[351157104,1738368645771,-150.0,0.00018637,2]
[351157105,1738368645779,-150.0,0.00018637,2]
[351157106,1738368645789,-369.29,0.00018642,2]
[351157107,1738368645798,-150.0,0.00018644,2]
[351157108,1738368645807,-150.0,0.00018646,2]
[351157109,1738368645816,-150.0,0.00018648,2]
[351157110,1738368645825,-150.0,0.00018649,2]
[351157111,1738368645835,-150.0,0.00018652,2]
[351157112,1738368645844,-150.0,0.00018654,2]
[351157113,1738368645857,-150.0,0.00018659,2]
[351157114,1738368645867,-150.0,0.00018661,2]
[351157115,1738368645877,-150.0,0.00018664,2]
[351157116,1738368645890,-150.0,0.00018665,2]
[351157117,1738368645899,-150.0,0.0001867,2]
[351157118,1738368645908,-150.0,0.00018671,2]
[351157119,1738368645917,-150.0,0.00018681,2]
[351157120,1738368645927,-150.0,0.00018683,2]
[351157121,1738368645937,-150.0,0.00018688,2]
[351157122,1738368645947,-150.0,0.0001869,2]
[351157123,1738368645957,-150.0,0.00018692,2]
[351157124,1738368645966,-150.0,0.00018693,2]
[351157125,1738368645975,-150.0,0.00018694,2]
[351157126,1738368645985,-150.0,0.00018699,2]
[351157127,1738368645994,-150.0,0.00018703,2]
[351157128,1738368646004,-150.0,0.00018706,2]
[351157129,1738368646014,-150.0,0.00018709,2]
[351157130,1738368646024,-150.0,0.00018713,2]
[351157131,1738368646034,-150.0,0.00018722,2]
[351157132,1738368646044,-150.0,0.00018722,2]
[351157133,1738368646054,-150.0,0.00018724,2]
[351157134,1738368646064,-150.0,0.00018728,2]
[351157135,1738368646073,-150.0,0.00018732,2]
[351157136,1738368646083,-150.0,0.00018735,2]
[351157137,1738368646092,-150.0,0.00018735,2]
[351157138,1738368646102,-150.0,0.00018739,2]
[351157139,1738368646112,-150.0,0.00018739,2]
[351157140,1738368646122,-150.0,0.0001874,2]
[351157141,1738368646133,-150.0,0.00018746,2]
[351157142,1738368646144,-150.0,0.00018761,2]
[351157143,1738368646154,-150.0,0.00018764,2]
[351157144,1738368646164,-150.0,0.00018769,2]
[351157145,1738368646174,-150.0,0.00018777,2]
[351157146,1738368646184,-150.0,0.00018779,2]
[351157147,1738368646193,-150.0,0.00018805,2]
[351157148,1738368646203,-150.0,0.00018808,2]
[351157149,1738368646213,-7.89967121,0.00018809,2]
[351157150,1738368646270,-142.10032879,0.00018809,2]
[351157151,1738368646280,-150.0,0.00018809,2]
[351157152,1738368646290,-150.0,0.00018814,2]
[351157153,1738368646299,-33.74640725,0.00018817,2]
[351157154,1738368646308,-150.0,0.00018817,2]
[351157155,1738368646318,-150.0,0.00018819,2]
[351157156,1738368646327,-150.0,0.0001882,2]
[351157157,1738368646336,-150.0,0.00018822,2]
[351157158,1738368646346,-150.0,0.00018824,2]
[351157159,1738368646355,-150.0,0.00018826,2]
[351157160,1738368646365,-150.0,0.00018826,2]
[351157161,1738368646374,-150.0,0.00018826,2]
[351157162,1738368646384,-21.14898396,0.00018828,2]
[351157163,1738368646395,-128.85101604,0.00018828,2]
[351157164,1738368646404,-150.0,0.0001883,2]
[351157165,1738368646414,-150.0,0.0001883,2]
[351157166,1738368646423,-150.0,0.0001883,2]
[351157167,1738368646432,-150.0,0.0001883,2]
[351157168,1738368646442,-150.0,0.00018831,2]
[351157169,1738368646450,-631.71884694,0.00018832,2]
[351157170,1738368646634,-150.0,0.0001869,2]
[351157171,1738368646644,-150.0,0.00018712,2]
[351157172,1738368646653,-150.0,0.00018741,2]
[351157173,1738368646663,-150.0,0.00018823,2]
[351157174,1738368646674,-368.28115306,0.00018832,2]
[351157175,1738368646685,-150.0,0.00018835,2]
[351157176,1738368646694,-150.0,0.00018836,2]
[351157177,1738368646703,-150.0,0.00018837,2]
[351157178,1738368646712,-150.0,0.00018838,2]
[351157179,1738368646721,-150.0,0.00018839,2]
[351157180,1738368646729,-150.0,0.0001884,2]
[351157181,1738368646738,-150.0,0.00018844,2]
[351157182,1738368646747,-150.0,0.00018846,2]
[351157183,1738368646756,-150.0,0.00018848,2]
[351157184,1738368646766,-150.0,0.00018848,2]
[351157185,1738368646775,-150.0,0.00018848,2]
[351157186,1738368646783,-150.0,0.00018848,2]
[351157187,1738368646793,-150.0,0.0001885,2]
[351157188,1738368646802,-1000.0,0.00018852,2]
[351157189,1738368646811,-150.0,0.00018852,2]
[351157190,1738368646820,-150.0,0.00018853,2]
[351157191,1738368646828,-150.0,0.00018854,2]
[351157192,1738368646837,-150.0,0.00018855,2]
[351157193,1738368646847,-150.0,0.00018856,2]
[351157194,1738368646859,-150.0,0.00018859,2]
[351157195,1738368646867,-150.0,0.0001886,2]
[351157196,1738368646876,-150.0,0.0001886,2]
[351157197,1738368646890,-150.0,0.0001886,2]
[351157198,1738368646899,-150.0,0.0001886,2]
[351157199,1738368646909,-150.0,0.00018861,2]
[351157200,1738368646918,-150.0,0.00018862,2]
[351157201,1738368646928,-150.0,0.00018862,2]
[351157202,1738368646940,-150.0,0.00018863,2]
[351157203,1738368646949,-150.0,0.00018865,2]
[351157204,1738368646959,-150.0,0.00018865,2]
[351157205,1738368646969,-313.4273143,0.00018866,2]
[351157206,1738368646978,-178.31874194,0.00018866,2]
[351157207,1738368646988,-150.0,0.00018867,2]
[351157208,1738368646997,-150.0,0.00018867,2]
[351157209,1738368647007,-150.0,0.00018869,2]
[351157210,1738368647016,-150.0,0.00018869,2]
[351157211,1738368647026,-150.0,0.0001887,2]
[351157212,1738368647035,-178.31874194,0.0001887,2]
[351157213,1738368647044,-178.31874194,0.0001887,2]
[351157214,1738368647053,-150.0,0.0001887,2]
[351157215,1738368647063,-150.0,0.00018871,2]
[351157216,1738368647072,-150.0,0.00018871,2]
[351157217,1738368647081,-520.26724375,0.00018873,2]
[351157218,1738368647090,-501.83157328,0.00018873,2]
[351157219,1738368647099,-1000.0,0.00018873,2]
[351157220,1738368647108,-150.0,0.00018874,2]
[351157221,1738368647117,-150.0,0.00018875,2]
[351157222,1738368647126,-291.72356417,0.00018875,2]
[351157223,1738368647138,-40569.51292562,0.00018875,2]
[351157224,1738368647197,-150.0,0.00018615,2]
[351157225,1738368647206,-150.0,0.00018684,2]
[351157226,1738368647215,-150.0,0.00018705,2]
[351157227,1738368647224,-150.0,0.00018768,2]
[351157228,1738368647234,-150.0,0.00018776,2]
[351157229,1738368647244,-605631.85618976,0.00018875,2]
[351157231,1738368805468,287.79,0.00010137,2]
[351157688,1738369831968,-423.3429735,0.00013,2]
[351157724,1738369832802,-126.6570265,0.00013,2]